bitfinex/quotes_SOLUSD_20251212
["timestamp","ask_amount","ask_price","bid_price","bid_amount"]
[1765524299886,0.67,139.01,138.98,9.97746319]
[1765524300481,0.67,139.01,138.98,9.97762754]
[1765524300899,0.67,139.03,139.0,2.78273118]
[1765524301088,7.19217491,139.04,138.99,2.78273118]
[1765524301089,0.67,139.02,138.99,2.78273118]
[1765524301794,0.67,139.02,138.98,27.96582728]
[1765524301997,0.67,139.02,138.98,29.53111136]
[1765524302199,7.86342952,139.02,138.97,21.12943625]
[1765524302410,4.34801526,139.01,138.97,15.0756535]
[1765524302699,5.01801526,139.01,138.97,15.0756535]
[1765524303000,0.67,139.0,138.97,15.0756535]
[1765524307506,0.67,139.0,138.97,19.42366876]
[1765524310306,7.19396753,139.01,138.97,19.42366876]
[1765524310605,0.67,139.0,138.97,19.42366876]
[1765524310809,0.67,139.01,138.97,19.42366876]
[1765524311007,7.1933996,139.02,138.97,19.42366876]
[1765524311202,0.67,139.0,138.97,19.42366876]
[1765524313416,0.67,139.0,138.97,37.41316289]
[1765524314116,0.68,139.02,138.98,4.34801526]
[1765524314416,7.87233331,139.04,139.01,7.19372706]
[1765524314616,7.19233331,139.04,139.0,7.19406513]
[1765524314789,0.68,139.03,139.0,7.19406513]
[1765524316210,0.68,139.03,139.0,11.54208039]
[1765524316692,0.72,139.05,139.01,4.34801526]
[1765524316894,0.72,139.05,139.02,4.34801526]
[1765524317930,0.72,139.05,139.02,11.54096058]
[1765524323710,0.72,139.05,139.02,7.19294532]
[1765524323935,7.9118654,139.05,139.02,7.19294532]
[1765524324342,7.9118654,139.05,139.01,19.42161302]
[1765524324505,7.19269222,139.03,138.99,6.05378275]
[1765524324707,7.19269222,139.03,138.98,49.3163938]
[1765524324933,0.72,139.02,138.98,49.3163938]
[1765524326342,0.72,139.02,138.99,11.5425864]
[1765524328042,0.72,139.03,138.99,29.52949193]
[1765524329047,0.72,139.03,138.99,25.18147667]
[1765524329438,4.20168067,139.02,138.99,25.18147667]
[1765524329947,4.92168067,139.02,138.99,25.18147667]
[1765524331647,4.92168067,139.02,138.99,29.52949193]
[1765524331827,4.92168067,139.02,138.99,29.52895333]
[1765524334048,4.92168067,139.02,138.99,25.18147667]
[1765524334225,4.92168067,139.02,138.99,29.52895333]
[1765524335358,4.92168067,139.02,138.99,25.18147667]
[1765524335653,4.20168067,139.02,139.01,7.19372706]
[1765524335814,4.20168067,139.02,139.01,11.54120372]
[1765524338442,4.20168067,139.02,139.01,18.7323623]
[1765524338648,4.20168067,139.02,139.01,11.54120372]
[1765524338851,4.20168067,139.02,139.01,7.19372706]
[1765524340460,4.92168067,139.02,139.01,7.19372706]
[1765524344957,4.20168067,139.02,139.01,7.19372706]
[1765524354659,4.90168067,139.02,138.99,6.05378275]
[1765524354842,0.7,139.01,138.99,15.07442]
[1765524377686,7.89377109,139.01,138.99,7.88]
[1765524378060,24.96753227,139.02,138.97,7.1955824]
[1765524378061,7.85432322,139.0,138.97,7.1955824]
[1765524378476,0.66,138.99,138.97,7.1955824]
[1765524383897,0.66,138.99,138.95,6.05757413]
[1765524383898,3.44277934,138.99,138.95,6.05757413]
[1765524384071,0.66,138.99,138.96,9.97872435]
[1765524384399,0.66,138.99,138.96,17.85872435]
[1765524385315,7.19395382,139.01,138.97,2.78277934]
[1765524385515,0.7,139.0,138.97,2.78277934]
[1765524386078,0.7,139.0,138.98,7.19527989]
[1765524389681,11.39513138,139.02,138.98,7.19527989]
[1765524389682,0.7,139.01,138.98,7.19527989]
[1765524393028,0.7,139.01,138.98,2.78277934]
[1765524393736,0.7,139.01,138.98,7.88]
[1765524394517,0.7,139.01,138.99,7.19476221]
[1765524396928,4.20168067,139.02,139.01,13.0470912]
[1765524397097,4.20168067,139.02,139.01,21.88736171]
[1765524397497,4.20168067,139.02,139.01,30.69730663]
[1765524397715,4.20168067,139.02,139.01,37.88816362]
[1765524398118,0.2,139.08,139.05,13.0470912]
[1765524398320,0.2,139.08,139.06,2.78269638]
[1765524398626,0.9,139.08,139.06,2.78269638]
[1765524398926,0.9,139.08,139.06,9.97354434]
[1765524399425,0.7,139.07,139.06,7.19084796]
[1765524400004,0.7,139.07,139.05,7.88]
[1765524400610,0.7,139.07,139.04,7.19174516]
[1765524401133,7.89065357,139.07,139.04,7.19174516]
[1765524401501,0.7,139.06,139.04,7.19174516]
[1765524404802,0.7,139.06,139.01,10.17303623]
[1765524404803,2.78269638,139.05,139.01,10.17303623]
[1765524405003,2.78269638,139.03,138.99,7.19448613]
[1765524405430,0.67,139.02,138.99,7.19448613]
[1765524406929,10.64591531,139.02,138.98,15.07506522]
[1765524407429,0.67,139.01,138.98,15.07506522]
[1765524415743,0.67,139.02,138.98,15.07506522]
[1765524415921,17.85563351,139.03,138.98,15.07506522]
[1765524416120,0.67,139.02,138.98,17.8577616]
[1765524418939,0.67,139.02,138.98,35.84596134]
[1765524419147,7.19293713,139.03,138.99,2.78269638]
[1765524419325,0.67,139.02,139.0,2.78269638]
[1765524419939,0.67,139.04,139.01,2.78269638]
[1765524420817,0.67,139.04,139.02,7.19320961]
[1765524421246,0.67,139.04,139.02,9.97590599]
[1765524421745,7.19135617,139.06,139.03,2.78269638]
[1765524421936,0.67,139.05,139.03,2.78269638]
[1765524422833,0.67,139.05,139.03,9.97506326]
[1765524423952,0.67,139.05,139.03,11.53751618]
[1765524424650,0.67,139.05,139.03,4.34516622]
[1765524425936,0.67,139.05,139.02,4.34516622]
[1765524426551,7.8616657,139.05,139.01,11.53889328]
[1765524426855,7.8616657,139.05,139.0,19.41916677]
[1765524427153,0.67,139.04,139.0,19.41916677]
[1765524427453,0.67,139.04,139.0,15.07400055]
[1765524428851,7.86248874,139.04,139.0,15.07400055]
[1765524429255,0.67,139.03,139.0,15.07400055]
[1765524430855,0.67,139.03,139.0,7.19400055]
[1765524431153,7.86273059,139.03,138.99,24.58679587]
[1765524431774,0.67,139.02,138.99,22.58679587]
[1765524432265,0.67,139.02,138.99,11.53970467]
[1765524435468,7.86325041,139.02,138.99,4.34516622]
[1765524435758,7.86325041,139.02,138.99,7.19474884]
[1765524435938,0.69,139.01,138.99,7.19474884]
[1765524436137,0.69,139.01,138.99,11.53991506]
[1765524439866,17.97852095,139.06,138.99,11.53991506]
[1765524440067,23.03368717,139.06,139.0,4.34516622]
[1765524440365,0.71,139.05,139.0,4.34516622]
[1765524440964,7.19217491,139.04,139.0,11.53918861]
[1765524442066,0.71,139.03,139.0,11.53918861]
[1765524442364,0.71,139.03,139.0,7.19402239]
[1765524443260,7.90273601,139.03,139.0,7.19402239]
[1765524443658,0.71,139.02,139.0,7.19402239]
[1765524445648,0.71,139.02,138.99,7.1946469]
[1765524445962,7.90321058,139.02,138.99,7.1946469]
[1765524446266,7.90321058,139.02,138.98,19.42029177]
[1765524446568,0.71,139.01,138.98,19.42029177]
[1765524447474,7.90321058,139.02,138.98,19.42029177]
[1765524447849,0.71,139.01,138.98,19.42029177]
[1765524448962,0.71,139.01,138.98,15.07512555]
[1765524449271,0.71,139.01,138.98,19.42029177]
[1765524450470,0.71,139.03,138.99,4.34516622]
[1765524450979,0.71,139.03,139.0,7.1942446]
[1765524452580,0.71,139.03,139.0,11.53941082]
[1765524457091,0.71,139.03,139.01,4.34680785]
[1765524460865,0.71,139.03,139.01,11.54028659]
[1765524464177,7.8718156,139.05,139.02,4.34680785]
[1765524464385,0.68,139.04,139.02,4.34680785]
[1765524464552,7.19139707,139.06,139.02,4.34680785]
[1765524464759,7.87139707,139.06,139.04,4.34680785]
[1765524465055,0.68,139.06,139.04,4.34680785]
[1765524466072,0.68,139.07,139.05,4.34680785]
[1765524470774,0.68,139.07,139.04,11.53889474]
[1765524474094,4.34680785,139.06,139.01,7.19355308]
[1765524474461,0.68,139.05,139.01,7.19355308]
[1765524475167,7.87187525,139.05,139.01,7.19355308]
[1765524475596,0.68,139.04,139.01,7.19355308]
[1765524476499,7.87222723,139.04,139.0,32.46809002]
[1765524476691,7.87222723,139.04,138.99,11.54134007]
[1765524476893,0.68,139.03,139.0,11.54092875]
[1765524479302,7.87276384,139.03,139.0,11.54092875]
[1765524479791,0.68,139.02,138.99,11.54138563]
[1765524480295,0.68,139.02,139.0,7.19422072]
[1765524481500,0.68,139.04,139.01,4.34680785]
[1765524481669,0.68,139.04,139.02,4.34680785]
[1765524482069,0.68,139.04,139.01,4.34680785]
[1765524482270,0.68,139.04,139.0,29.52664008]
[1765524482705,0.68,139.04,139.01,4.34680785]
[1765524483003,0.68,139.04,138.99,11.54146621]
[1765524483208,0.68,139.04,138.98,28.12225786]
[1765524483209,5.02680785,139.04,138.98,28.12225786]
[1765524483393,4.34680785,139.03,138.97,11.54225026]
[1765524483580,7.87320961,139.02,138.97,11.54225026]
[1765524484078,0.68,139.01,138.98,4.34680785]
[1765524484700,0.68,139.01,138.97,11.54225026]
[1765524485877,0.68,139.01,138.97,9.97877089]
[1765524486392,7.87383992,139.01,138.97,9.97877089]
[1765524486787,0.68,139.0,138.96,17.85955564]
[1765524486991,0.68,139.0,138.95,9.97979885]
[1765524487202,0.68,139.0,138.94,16.68994492]
[1765524487401,7.8744087,139.0,138.96,7.19629273]
[1765524488204,0.68,138.99,138.96,7.19629273]
[1765524488594,0.68,138.99,138.96,2.78405833]
[1765524490007,7.87483581,138.99,138.96,2.78405833]
[1765524490992,7.874072,139.01,138.98,2.78405833]
[1765524491319,7.194072,139.01,138.98,2.78405833]
[1765524491618,0.68,139.0,138.98,2.78405833]
[1765524492119,7.874072,139.01,138.99,2.78405833]
[1765524492301,7.19338287,139.02,138.99,2.78405833]
[1765524492495,0.68,139.01,138.99,2.78405833]
[1765524494020,0.68,139.01,138.98,9.97924202]
[1765524495198,7.87384815,139.01,138.98,9.97924202]
[1765524495404,7.87384815,139.01,138.97,7.88]
[1765524495405,7.87384815,139.01,138.97,10.66405833]
[1765524495606,0.68,139.0,138.97,15.0757553]
[1765524496291,7.87430795,139.0,138.96,23.02733552]
[1765524496496,7.87430795,139.0,138.95,2.78405833]
[1765524496696,0.68,138.99,138.95,2.78405833]
[1765524497714,7.87504604,138.99,138.95,9.98082224]
[1765524498116,0.68,138.98,138.95,7.19676391]
[1765524498837,0.68,138.98,138.94,17.86116538]
[1765524499620,0.68,138.98,138.95,7.19678663]
[1765524500599,0.68,138.98,138.95,9.98084496]
[1765524503725,7.19579765,138.97,138.94,7.88]
[1765524503903,7.19579765,138.97,138.92,23.71114953]
[1765524504104,0.7,138.96,138.92,23.71114953]
[1765524505026,0.7,138.96,138.93,7.19779226]
[1765524505212,0.7,138.96,138.93,9.98185059]
[1765524509130,0.7,138.96,138.93,2.78405833]
[1765524510316,0.7,138.96,138.93,9.98185059]
[1765524510716,7.1942446,139.0,138.93,7.19779226]
[1765524510918,7.1942446,139.0,138.97,2.78405833]
[1765524511119,7.8942446,139.0,138.96,2.78405833]
[1765524511731,7.19391335,139.01,138.98,2.78405833]
[1765524512132,7.89391335,139.01,138.98,2.78405833]
[1765524512333,7.89429801,139.0,138.96,9.98037381]
[1765524512832,0.7,138.99,138.96,9.98037381]
[1765524513538,0.7,138.99,138.95,9.98072746]
[1765524514336,7.89510195,138.99,138.95,9.98072746]
[1765524514934,0.7,138.99,138.95,9.98072746]
[1765524515542,0.7,138.99,138.96,2.78405833]
[1765524516218,7.19445657,139.0,138.96,2.78405833]
[1765524516419,7.89426613,139.0,138.97,9.97960909]
[1765524517343,0.7,139.0,138.97,9.97960909]
[1765524518243,39.57868972,139.04,138.99,2.78405833]
[1765524518451,7.19238005,139.04,139.01,2.78405833]
[1765524518624,0.7,139.03,139.0,2.78405833]
[1765524519222,0.7,139.03,138.98,9.97911772]
[1765524519419,0.7,139.03,138.98,9.97811472]
[1765524519647,8.58,139.03,138.98,9.97811472]
[1765524519844,8.58,139.03,138.98,7.19505939]
[1765524520113,8.58,139.03,138.98,9.97811472]
[1765524520114,0.7,139.02,138.98,9.97811472]
[1765524520319,0.7,139.02,138.99,9.97777161]
[1765524520553,0.7,139.02,138.98,7.19527989]
[1765524521433,0.7,139.02,139.01,2.78305533]
[1765524521755,8.58,139.03,139.01,2.78305533]
[1765524522537,0.7,139.02,139.01,2.78305533]
[1765524523335,0.7,139.02,139.0,9.97728821]
[1765524524142,0.7,139.02,139.01,2.78305533]
[1765524524346,8.55,139.03,139.01,9.97678239]
[1765524525453,0.67,139.02,139.0,2.78305533]
[1765524527960,7.86326262,139.02,138.99,9.97750056]
[1765524528423,0.67,139.01,138.99,9.97750056]
[1765524529462,0.67,139.01,138.98,9.97833522]
[1765524530563,0.67,139.01,138.98,7.19527989]
[1765524530766,0.67,139.01,138.98,9.97833522]
[1765524533728,0.67,139.01,138.98,7.19527989]
[1765524538453,7.86386295,139.01,138.98,7.19527989]
[1765524538897,0.67,139.0,138.98,7.19527989]
[1765524540968,0.67,139.0,138.97,7.19579765]
[1765524541162,0.67,139.01,138.98,2.78305533]
[1765524541369,0.67,139.01,138.97,9.97885298]
[1765524542178,0.67,139.01,138.97,7.19579765]
[1765524542754,0.67,139.01,138.97,9.97885298]
[1765524542755,7.86392061,139.01,138.97,9.97885298]
[1765524543280,0.67,139.0,138.97,9.97885298]
[1765524544685,22.26749469,139.04,138.99,2.78305533]
[1765524544861,0.67,139.03,139.0,2.78305533]
[1765524545375,0.67,139.03,138.99,2.78305533]
[1765524545953,7.86298311,139.03,138.99,11.54199604]
[1765524546397,0.67,139.02,138.99,11.54199604]
[1765524546677,0.67,139.02,139.0,4.34743092]
[1765524549287,7.86328071,139.02,138.99,11.54199604]
[1765524549659,0.67,139.01,138.99,11.54199604]
[1765524550355,0.67,139.01,138.99,11.54220391]
[1765524550778,0.67,139.01,139.0,4.34763879]
[1765524553085,0.67,139.01,138.99,11.54220391]
[1765524554105,0.67,139.01,138.99,7.19456512]
[1765524554388,0.67,139.01,138.99,4.34763879]
[1765524555590,0.67,139.01,138.99,11.54230541]
[1765524556891,0.67,139.01,139.0,4.34763879]
[1765524559682,0.67,139.01,138.99,7.1946031]
[1765524559985,0.72,139.02,139.0,11.54175819]
[1765524560189,0.72,139.02,139.01,4.34763879]
[1765524561486,0.72,139.02,139.0,7.1941194]
[1765524561686,0.72,139.02,139.0,11.54175819]
[1765524562285,15.07239961,139.04,139.01,4.34763879]
[1765524562490,7.88,139.05,139.03,4.34763879]
[1765524562491,0.66,139.05,139.03,4.34763879]
[1765524562796,0.66,139.04,139.03,4.34763879]
[1765524564066,0.66,139.05,139.03,4.34763879]
[1765524565595,0.66,139.05,139.03,11.54025486]
[1765524567893,15.73087729,139.07,139.04,4.34763879]
[1765524568100,0.66,139.06,139.04,4.34763879]
[1765524570073,0.66,139.06,139.04,11.53968159]
[1765524575310,0.2,139.08,139.05,4.34763879]
[1765524575488,0.2,139.08,139.07,4.34763879]
[1765524576904,0.2,139.08,139.06,13.92308507]
[1765524577091,0.2,139.08,139.07,4.34763879]
[1765524577409,0.2,139.08,139.07,11.53826221]
[1765524579319,0.2,139.08,139.07,7.19062342]
[1765524579615,0.2,139.08,139.07,11.53826221]
[1765524581689,0.2,139.08,139.07,11.53257106]
[1765524591111,0.2,139.08,139.04,2.87759433]
[1765524591317,0.88,139.08,139.07,11.53257106]
[1765524597123,0.88,139.08,139.06,11.53286543]
[1765524597298,0.68,139.07,139.06,11.53286543]
[1765524598120,0.88,139.08,139.06,11.53286543]
[1765524598321,0.88,139.08,139.07,4.34194764]
[1765524602506,0.88,139.08,139.06,11.53286543]
[1765524603223,0.68,139.07,139.06,7.19091779]
[1765524603427,0.2,139.08,139.06,11.53286543]
[1765524603603,0.88,139.08,139.06,11.53286543]
[1765524605025,0.68,139.07,139.05,17.97857878]
[1765524605324,0.68,139.07,139.06,4.34194764]
[1765524605627,0.68,139.07,139.04,4.34194764]
[1765524607031,0.68,139.07,139.04,11.53406363]
[1765524607829,0.68,139.07,139.05,4.34194764]
[1765524608026,7.79013157,139.08,139.06,2.7803351]
[1765524608212,8.47013157,139.08,139.07,2.7803351]
[1765524608409,7.79013157,139.08,139.06,2.7803351]
[1765524608609,0.2,139.08,139.06,2.7803351]
[1765524608931,0.68,139.07,139.06,2.7803351]
[1765524609231,0.88,139.08,139.07,7.19062342]
[1765524609441,0.88,139.08,139.07,9.97095852]
[1765524610128,0.88,139.08,139.06,9.97124557]
[1765524611134,0.88,139.08,139.07,2.7803351]
[1765524611338,0.2,139.08,139.07,2.7803351]
[1765524612834,0.2,139.08,139.07,2.77862307]
[1765524613321,0.2,139.08,139.07,9.96924649]
[1765524624319,0.2,139.08,139.07,26.65919141]
[1765524624519,0.2,139.1,139.09,13.0470912]
[1765524624748,0.2,139.1,139.09,26.48433734]
[1765524625222,0.2,139.1,139.09,29.36089697]
[1765524625625,0.2,139.1,139.09,26.5822739]
[1765524625854,0.2,139.1,139.09,32.62636807]
[1765524626155,0.2,139.1,139.09,29.74980844]
[1765524627145,0.2,139.1,139.09,23.01530374]
[1765524628133,0.2,139.1,139.09,25.89227716]
[1765524628530,0.2,139.1,139.09,23.01530374]
[1765524628756,0.2,139.1,139.09,25.89227716]
[1765524629546,0.2,139.1,139.09,23.01530374]
[1765524634536,0.2,139.1,139.09,31.82524866]
[1765524634845,0.2,139.1,139.09,42.48387173]
[1765524635146,0.2,139.1,139.09,45.36063824]
[1765524640278,0.2,139.1,139.09,42.58201517]
[1765524641069,0.2,139.1,139.09,39.8033921]
[1765524641443,0.2,139.1,139.09,42.58201517]
[1765524641840,0.2,139.1,139.09,33.77207025]
[1765524642147,0.2,139.1,139.09,23.01530374]
[1765524642669,0.92,139.1,139.09,23.01530374]
[1765524643262,0.2,139.1,139.09,23.01530374]
[1765524644026,0.2,139.1,139.09,30.89530374]
[1765524644474,0.2,139.1,139.09,30.89406628]
[1765524644648,0.2,139.1,139.09,33.77062591]
[1765524646073,0.2,139.1,139.09,39.81472008]
[1765524646261,1e-08,139.12,139.11,0.28432314]
[1765524646569,6.33700025,139.13,139.12,9.09426806]
[1765524646745,6.33700025,139.13,139.12,11.87165367]
[1765524648246,6.33700025,139.13,139.12,19.05969277]
[1765524649058,0.2,139.14,139.13,0.28432314]
[1765524649254,0.2,139.14,139.13,32.79874487]
[1765524649564,0.2,139.16,139.14,22.14135926]
[1765524649758,0.92,139.16,139.14,24.63442173]
[1765524650055,0.2,139.16,139.14,24.63442173]
[1765524650258,0.2,139.16,139.14,31.82142762]
[1765524651355,0.2,139.16,139.14,29.04404201]
[1765524651578,0.2,139.16,139.14,31.82142762]
[1765524653958,0.2,139.16,139.14,34.6969533]
[1765524656081,0.2,139.16,139.14,31.91956769]
[1765524656259,0.2,139.16,139.14,34.6969533]
[1765524660384,0.2,139.16,139.14,26.53418524]
[1765524660558,0.2,139.17,139.16,9.09426806]
[1765524660884,0.92,139.17,139.16,11.58733053]
[1765524661064,0.2,139.17,139.16,14.46244283]
[1765524661268,0.2,139.17,139.16,34.69550701]
[1765524663990,0.92,139.17,139.16,31.9181214]
[1765524664157,0.2,139.17,139.16,34.69550701]
[1765524664559,0.92,139.17,139.16,23.10817648]
[1765524664880,0.92,139.17,139.16,7.18597298]
[1765524668383,0.92,139.17,139.15,28.09339507]
[1765524668684,0.72,139.16,139.15,20.23339507]
[1765524668886,0.72,139.16,139.14,7.18682467]
[1765524669693,0.72,139.16,139.15,7.18648939]
[1765524670386,0.72,139.16,139.14,7.18700589]
[1765524671498,0.2,139.17,139.15,13.14810462]
[1765524671665,0.2,139.17,139.15,8.80994492]
[1765524671989,0.2,139.17,139.16,4.3381597]
[1765524672994,0.2,139.17,139.16,26.19519582]
[1765524673194,0.2,139.17,139.16,34.05519582]
[1765524673989,0.2,139.17,139.16,41.2411688]
[1765524675394,0.9,139.17,139.16,28.09306418]
[1765524677575,0.9,139.17,139.16,32.42988778]
[1765524678007,0.9,139.17,139.16,28.09306418]
[1765524678187,0.9,139.17,139.16,32.42988778]
[1765524679984,0.2,139.17,139.16,32.42988778]
[1765524680173,0.2,139.17,139.16,47.54747208]
[1765524680375,0.2,139.18,139.17,13.43109166]
[1765524681298,0.2,139.19,139.17,13.43109166]
[1765524681524,0.2,139.19,139.18,21.29109166]
[1765524682086,0.89,139.19,139.18,28.19170888]
[1765524682309,0.89,139.19,139.18,23.85488528]
[1765524682480,0.2,139.19,139.18,28.19170888]
[1765524685088,0.2,139.2,139.18,41.52312322]
[1765524685404,0.2,139.2,139.19,26.47818286]
[1765524685606,0.2,139.2,139.19,34.7505027]
[1765524686416,0.2,139.2,139.19,41.93492686]
[1765524687179,8.27231984,139.24,139.21,21.85703612]
[1765524687378,0.2,139.29,139.27,8.80994492]
[1765524687379,1e-08,139.29,139.27,8.80994492]
[1765524687604,1e-08,139.29,139.28,25.04064479]
[1765524687789,1e-08,139.29,139.28,27.91296993]
[1765524688220,1e-08,139.29,139.28,29.31513943]
[1765524688395,1e-08,139.29,139.28,31.93610338]
[1765524689407,1e-08,139.29,139.28,32.22042652]
[1765524689586,1e-08,139.29,139.28,27.88360292]
[1765524689890,0.69000001,139.29,139.28,31.93610338]
[1765524690081,0.69000001,139.29,139.28,44.98319458]
[1765524690484,1e-08,139.29,139.28,44.98319458]
[1765524691010,1e-08,139.29,139.28,45.26751772]
[1765524693318,0.2,139.33,139.32,8.80994492]
[1765524693488,0.2,139.33,139.32,13.14676852]
[1765524694090,0.89,139.33,139.32,13.14676852]
[1765524694320,1e-08,139.33,139.32,21.29109166]
[1765524695195,1e-08,139.33,139.32,28.46881201]
[1765524695799,1e-08,139.33,139.32,39.16645143]
[1765524695985,0.69000001,139.33,139.32,38.88212829]
[1765524696185,1e-08,139.33,139.32,28.18448887]
[1765524696687,0.69000001,139.33,139.32,11.51454395]
[1765524696991,1e-08,139.33,139.32,20.32448887]
[1765524697416,0.69000001,139.33,139.32,28.18448887]
[1765524698194,1e-08,139.33,139.32,28.18448887]
[1765524698407,1e-08,139.33,139.32,28.46881201]
[1765524699049,1e-08,139.33,139.32,38.47645143]
[1765524699907,1e-08,139.33,139.32,28.46881201]
[1765524701722,1e-08,139.33,139.32,39.16645143]
[1765524702816,1e-08,139.33,139.32,38.88212829]
[1765524703027,1e-08,139.33,139.32,28.18448887]
[1765524705216,0.68000001,139.33,139.32,28.18448887]
[1765524705633,0.68000001,139.33,139.32,23.84766527]
[1765524705836,0.68000001,139.33,139.32,28.18448887]
[1765524707873,0.68000001,139.33,139.32,15.03772035]
[1765524708149,0.68000001,139.33,139.32,11.51454395]
[1765524708926,0.68000001,139.33,139.32,7.17772035]
[1765524709124,0.68000001,139.33,139.32,11.51454395]
[1765524709525,0.68000001,139.33,139.31,11.50533917]
[1765524709953,0.68000001,139.33,139.31,7.17800815]
[1765524710946,0.68000001,139.33,139.3,25.12448376]
[1765524711458,7.85730813,139.33,139.3,7.17875089]
[1765524711670,12.18463915,139.33,139.29,7.17920181]
[1765524711828,0.68,139.32,139.29,7.17920181]
[1765524713057,0.68,139.32,139.28,7.17978173]
[1765524713751,0.68,139.32,139.29,4.32733102]
[1765524713952,0.68,139.32,139.3,4.32733102]
[1765524714126,0.68,139.32,139.31,4.32733102]
[1765524714331,0.68,139.32,139.3,4.32733102]
[1765524714678,0.68,139.32,139.29,13.13727594]
[1765524715023,0.68,139.32,139.3,7.17875089]
[1765524715754,0.1,139.47,139.39,8.80994492]
[1765524716053,0.68,139.45,139.43,13.0470912]
[1765524716267,0.68,139.45,139.4,25.23442222]
[1765524716425,0.68,139.45,139.4,13.0470912]
[1765524716730,5.00733102,139.45,139.39,4.32733102]
[1765524716931,4.32733102,139.44,139.38,17.37442222]
[1765524717148,7.17205766,139.43,139.39,7.17411579]
[1765524717453,12.17938868,139.43,139.38,7.17449178]
[1765524717655,0.68,139.42,139.38,7.17449178]
[1765524718329,12.43540374,139.42,139.37,7.17509314]
[1765524718534,11.4710806,139.41,139.36,7.17535133]
[1765524718741,11.4710806,139.4,139.35,7.17597922]
[1765524719043,7.85371429,139.4,139.35,7.17617509]
[1765524719237,0.68,139.39,139.37,11.4710806]
[1765524719444,0.68,139.39,139.38,11.4710806]
[1765524720261,11.4710806,139.45,139.38,33.32811672]
[1765524720578,8.54,139.45,139.41,11.4710806]
[1765524720727,0.69,139.44,139.4,11.4710806]
[1765524720928,0.69,139.44,139.39,8.80994492]
[1765524721169,0.69,139.44,139.41,7.17308657]
[1765524721857,0.69,139.44,139.4,7.17339475]
[1765524722757,7.86188555,139.44,139.39,18.64500934]
[1765524722962,7.86188555,139.44,139.4,7.17353259]
[1765524723157,0.69,139.43,139.42,20.21966328]
[1765524727670,0.69,139.44,139.42,20.21966328]
[1765524728239,0.69,139.44,139.42,31.69074388]
[1765524729979,0.69,139.44,139.42,27.27334753]
[1765524730337,0.69,139.44,139.43,4.75720021]
[1765524730543,0.69,139.44,139.43,11.92925787]
[1765524731457,0.69,139.44,139.43,4.75720021]
[1765524733065,0.69,139.44,139.39,7.05368425]
[1765524733273,7.86,139.43,139.4,4.76637435]
[1765524733449,0.66,139.42,139.39,7.05368425]
[1765524733770,0.66,139.42,139.39,7.174037]
[1765524734858,0.66,139.42,139.38,7.1746305]
[1765524735167,0.66,139.42,139.39,4.76550742]
[1765524735364,0.66,139.42,139.38,7.1746305]
[1765524735545,0.66,139.42,139.39,4.76620647]
[1765524735745,0.66,139.42,139.38,7.1746305]
[1765524736060,0.66,139.42,139.39,11.94004029]
[1765524736256,7.83267761,139.42,139.39,7.17393496]
[1765524736767,0.66,139.41,139.39,7.17393496]
[1765524737559,0.66,139.41,139.37,32.16611227]
[1765524737774,0.66,139.41,139.38,4.76522372]
[1765524738077,0.66,139.41,139.39,4.76522372]
[1765524738256,0.66,139.41,139.37,32.16611227]
[1765524738454,0.66,139.41,139.38,4.76602531]
[1765524738664,0.66,139.41,139.37,7.17514529]
[1765524738852,0.66,139.41,139.38,4.7662371]
[1765524739053,0.66,139.41,139.37,7.17514529]
[1765524739254,7.83358591,139.41,139.38,4.76604561]
[1765524739454,7.83358591,139.41,139.37,7.17514529]
[1765524739651,0.66,139.4,139.38,4.76601448]
[1765524739949,0.66,139.4,139.37,7.17514529]
[1765524740149,0.66,139.4,139.38,4.7656494]
[1765524740365,0.66,139.4,139.37,7.17514529]
[1765524740560,2.76751539,139.38,139.33,7.17682937]
[1765524740957,0.66,139.37,139.33,7.17682937]
[1765524741445,3.42926292,139.37,139.32,7.17756067]
[1765524741645,7.17566016,139.36,139.32,7.17756067]
[1765524741846,0.72,139.35,139.32,7.17756067]